[Event "Late-Titled-Tuesday-Blitz-July-09-2024"]
[Site "Chess.com"]
[Date "2024.07.09"]
[Round "7"]
[White "mishanick"]
[Black "ValeriyGrinev"]
[Result "1/2-1/2"]
[WhiteElo "3079"]
[BlackElo "2690"]
[TimeControl "180+1"]
[EndTime "15:19:01 PDT"]
[Termination "Game drawn - insufficient material"]

1. e4 {[%clk 0:03:00.9]} 1... c6 {[%clk 0:02:59.8]} 2. Nf3 {[%clk 0:03:00.8]}
2... d5 {[%clk 0:03:00.7]} 3. Nc3 {[%clk 0:03:00.5]} 3... Bg4 {[%clk 0:03:00.2]}
4. h3 {[%clk 0:03:00.1]} 4... Bxf3 {[%clk 0:03:00.6]} 5. Qxf3 {[%clk 0:03:01]}
5... dxe4 {[%clk 0:03:01.2]} 6. Nxe4 {[%clk 0:03:00.7]} 6... Nd7 {[%clk
0:03:01.6]} 7. Bc4 {[%clk 0:02:59.7]} 7... Ne5 {[%clk 0:03:01.9]} 8. Qe2 {[%clk
0:02:59.4]} 8... Nxc4 {[%clk 0:03:02.5]} 9. Qxc4 {[%clk 0:03:00.3]} 9... Qd5
{[%clk 0:03:02.9]} 10. Qe2 {[%clk 0:02:59.6]} 10... f5 {[%clk 0:03:02.6]} 11.
Ng3 {[%clk 0:02:53.9]} 11... Qxg2 {[%clk 0:03:02.5]} 12. d3 {[%clk 0:02:54]}
12... Nf6 {[%clk 0:02:26.9]} 13. Bg5 {[%clk 0:02:53.3]} 13... O-O-O {[%clk
0:02:24.2]} 14. O-O-O {[%clk 0:02:51.5]} 14... Qd5 {[%clk 0:02:20.5]} 15. c4
{[%clk 0:02:50.5]} 15... Qd7 {[%clk 0:02:18.5]} 16. Qe5 {[%clk 0:02:38.2]} 16...
g6 {[%clk 0:02:12.6]} 17. Bf4 {[%clk 0:02:37.4]} 17... Qd6 {[%clk 0:02:00.8]}
18. Qe3 {[%clk 0:02:35.5]} 18... e5 {[%clk 0:01:47.9]} 19. Bxe5 {[%clk
0:02:30.7]} 19... Bh6 {[%clk 0:01:47.8]} 20. f4 {[%clk 0:02:30.5]} 20... Rhe8
{[%clk 0:01:30.7]} 21. d4 {[%clk 0:02:16.5]} 21... Qb4 {[%clk 0:01:22.7]} 22.
Kb1 {[%clk 0:01:50.6]} 22... Qxc4 {[%clk 0:01:19.8]} 23. Qa3 {[%clk 0:01:51.3]}
23... Nd5 {[%clk 0:01:02.2]} 24. Qxa7 {[%clk 0:01:49.8]} 24... Bxf4 {[%clk
0:00:52.3]} 25. Qb8+ {[%clk 0:01:45.7]} 25... Kd7 {[%clk 0:00:52.1]} 26. Qxb7+
{[%clk 0:01:46.3]} 26... Ke6 {[%clk 0:00:50.7]} 27. Rhe1 {[%clk 0:01:35.4]}
27... Bxe5 {[%clk 0:00:46.1]} 28. Rxe5+ {[%clk 0:01:35.1]} 28... Kf6 {[%clk
0:00:46.3]} 29. b3 {[%clk 0:01:16.7]} 29... Qb5 {[%clk 0:00:38.3]} 30. Qxh7
{[%clk 0:00:48.2]} 30... Rxe5 {[%clk 0:00:36.4]} 31. dxe5+ {[%clk 0:00:47.2]}
31... Kxe5 {[%clk 0:00:37.3]} 32. Re1+ {[%clk 0:00:28.8]} 32... Kd6 {[%clk
0:00:33.4]} 33. Qxg6+ {[%clk 0:00:26.3]} 33... Kc7 {[%clk 0:00:33.6]} 34. Qg7+
{[%clk 0:00:26.1]} 34... Rd7 {[%clk 0:00:29]} 35. Qe5+ {[%clk 0:00:26.5]} 35...
Kb7 {[%clk 0:00:27.7]} 36. Nxf5 {[%clk 0:00:26.6]} 36... Qd3+ {[%clk 0:00:24.8]}
37. Ka1 {[%clk 0:00:26.5]} 37... Qd2 {[%clk 0:00:17.1]} 38. Qe2 {[%clk
0:00:18.5]} 38... Qc3+ {[%clk 0:00:12.7]} 39. Kb1 {[%clk 0:00:17.5]} 39... Qxh3
{[%clk 0:00:11.5]} 40. Qc2 {[%clk 0:00:09.6]} 40... Nc3+ {[%clk 0:00:06.8]} 41.
Kb2 {[%clk 0:00:09.6]} 41... Nb5 {[%clk 0:00:03.6]} 42. a4 {[%clk 0:00:04]}
42... Qh8+ {[%clk 0:00:03.5]} 43. Ka2 {[%clk 0:00:04.2]} 43... Nc3+ {[%clk
0:00:03.8]} 44. Ka3 {[%clk 0:00:04.8]} 44... Nd5 {[%clk 0:00:03.1]} 45. Qc5
{[%clk 0:00:04.3]} 45... Nb6 {[%clk 0:00:02.8]} 46. Nd6+ {[%clk 0:00:04.1]}
46... Kc7 {[%clk 0:00:02.7]} 47. Nb5+ {[%clk 0:00:04.4]} 47... Kb7 {[%clk
0:00:03.3]} 48. a5 {[%clk 0:00:03.9]} 48... Nd5 {[%clk 0:00:02.4]} 49. Nd6+
{[%clk 0:00:03.8]} 49... Rxd6 {[%clk 0:00:02.2]} 50. Qxd6 {[%clk 0:00:03.7]}
50... Qc3 {[%clk 0:00:03.1]} 51. Qd7+ {[%clk 0:00:03.6]} 51... Ka6 {[%clk
0:00:02.4]} 52. Qc8+ {[%clk 0:00:03.2]} 52... Kxa5 {[%clk 0:00:01.9]} 53. Qa8+
{[%clk 0:00:03.3]} 53... Kb6 {[%clk 0:00:02.3]} 54. Qb8+ {[%clk 0:00:02.8]}
54... Ka6 {[%clk 0:00:02.9]} 55. Qa8+ {[%clk 0:00:03.3]} 55... Kb6 {[%clk
0:00:03.5]} 56. Rd1 {[%clk 0:00:03.1]} 56... Nb4 {[%clk 0:00:02.1]} 57. Qb8+
{[%clk 0:00:02.9]} 57... Kc5 {[%clk 0:00:02.3]} 58. Qf8+ {[%clk 0:00:02.7]}
58... Kb5 {[%clk 0:00:02.5]} 59. Qb8+ {[%clk 0:00:03.1]} 59... Kc5 {[%clk
0:00:03.1]} 60. Qd6+ {[%clk 0:00:03.4]} 60... Kb5 {[%clk 0:00:02.8]} 61. Qd2
{[%clk 0:00:02.7]} 61... Nc2+ {[%clk 0:00:02.4]} 62. Ka2 {[%clk 0:00:03.2]}
62... Nb4+ {[%clk 0:00:02.8]} 63. Kb1 {[%clk 0:00:01.4]} 63... Qxb3+ {[%clk
0:00:02.8]} 64. Kc1 {[%clk 0:00:02.3]} 64... Qa3+ {[%clk 0:00:03.2]} 65. Kb1
{[%clk 0:00:02.5]} 65... Qb3+ {[%clk 0:00:03.4]} 66. Kc1 {[%clk 0:00:03.2]}
66... Qa3+ {[%clk 0:00:03.9]} 67. Qb2 {[%clk 0:00:03.7]} 67... Qe3+ {[%clk
0:00:04]} 68. Kb1 {[%clk 0:00:03.7]} 68... Qe4+ {[%clk 0:00:04.2]} 69. Ka1
{[%clk 0:00:04.3]} 69... Qc4 {[%clk 0:00:04.3]} 70. Rc1 {[%clk 0:00:04.3]} 70...
Qd3 {[%clk 0:00:03.8]} 71. Qe5+ {[%clk 0:00:04]} 71... Ka4 {[%clk 0:00:02.6]}
72. Qb2 {[%clk 0:00:02.3]} 72... c5 {[%clk 0:00:02.8]} 73. Rxc5 {[%clk
0:00:02.1]} 73... Qd1+ {[%clk 0:00:03.2]} 74. Rc1 {[%clk 0:00:02.6]} 74... Qd3
{[%clk 0:00:03.3]} 75. Rc3 {[%clk 0:00:02.9]} 75... Qd1+ {[%clk 0:00:03.4]} 76.
Rc1 {[%clk 0:00:03.5]} 76... Qd3 {[%clk 0:00:03.7]} 77. Re1 {[%clk 0:00:01.7]}
77... Nc2+ {[%clk 0:00:03.1]} 78. Ka2 {[%clk 0:00:02.3]} 78... Nxe1 {[%clk
0:00:02.4]} 79. Qb6 {[%clk 0:00:02.2]} 79... Qc4+ {[%clk 0:00:02.1]} 80. Ka1
{[%clk 0:00:01.9]} 80... Qc3+ {[%clk 0:00:01.8]} 81. Kb1 {[%clk 0:00:01.8]}
81... Qd3+ {[%clk 0:00:02]} 82. Kb2 {[%clk 0:00:01.6]} 82... Qc2+ {[%clk
0:00:02.3]} 83. Ka1 {[%clk 0:00:02.1]} 83... Qc1+ {[%clk 0:00:02.9]} 84. Ka2
{[%clk 0:00:02.6]} 84... Qc4+ {[%clk 0:00:03.1]} 85. Kb1 {[%clk 0:00:02.7]}
85... Nd3 {[%clk 0:00:03.8]} 86. Qa7+ {[%clk 0:00:02.7]} 86... Kb4 {[%clk
0:00:04.3]} 87. Qb6+ {[%clk 0:00:02.7]} 87... Kc3 {[%clk 0:00:04.9]} 88. Qf6+
{[%clk 0:00:02.6]} 88... Kd2 {[%clk 0:00:05.5]} 89. Qh6+ {[%clk 0:00:02.8]}
89... Kd1 {[%clk 0:00:05.9]} 90. Qh1+ {[%clk 0:00:02.9]} 90... Ne1 {[%clk
0:00:05.7]} 91. Qh5+ {[%clk 0:00:02.8]} 91... Kd2 {[%clk 0:00:05.8]} 92. Qh6+
{[%clk 0:00:03.2]} 92... Ke2 {[%clk 0:00:06.1]} 93. Qh5+ {[%clk 0:00:02.7]}
93... Kf2 {[%clk 0:00:06]} 94. Qf5+ {[%clk 0:00:03.3]} 94... Ke3 {[%clk
0:00:05.6]} 95. Qe5+ {[%clk 0:00:03.7]} 95... Kd2 {[%clk 0:00:05.9]} 96. Qg5+
{[%clk 0:00:03.9]} 96... Kc3 {[%clk 0:00:05.2]} 97. Qc1+ {[%clk 0:00:03.6]}
97... Kd3 {[%clk 0:00:03.9]} 98. Qd1+ {[%clk 0:00:03.7]} 98... Kc3 {[%clk
0:00:03.1]} 99. Qxe1+ {[%clk 0:00:02.1]} 99... Kb3 {[%clk 0:00:03.6]} 100. Qe3+
{[%clk 0:00:02.5]} 100... Qc3 {[%clk 0:00:03.8]} 101. Qxc3+ {[%clk 0:00:01.8]}
101... Kxc3 {[%clk 0:00:04]} 1/2-1/2

[Event "Late-Titled-Tuesday-Blitz-July-09-2024"]
[Site "Chess.com"]
[Date "2024.07.09"]
[Round "7"]
[White "FabianoCaruana"]
[Black "MetiForce"]
[Result "1/2-1/2"]
[WhiteElo "3169"]
[BlackElo "2920"]
[TimeControl "180+1"]
[EndTime "15:20:12 PDT"]
[Termination "Game drawn by 50-move rule"]

1. e4 {[%clk 0:03:00.9]} 1... c5 {[%clk 0:03:00.5]} 2. Nf3 {[%clk 0:03:00.9]}
2... d6 {[%clk 0:03:00.9]} 3. Bb5+ {[%clk 0:03:00.8]} 3... Nd7 {[%clk
0:03:01.5]} 4. O-O {[%clk 0:03:00.6]} 4... a6 {[%clk 0:03:01.3]} 5. Bd3 {[%clk
0:03:01.1]} 5... e6 {[%clk 0:02:56.9]} 6. Re1 {[%clk 0:03:00.2]} 6... Ngf6
{[%clk 0:02:57.1]} 7. Bf1 {[%clk 0:02:58.4]} 7... b5 {[%clk 0:02:55.2]} 8. a4
{[%clk 0:02:52.5]} 8... Bb7 {[%clk 0:02:54.6]} 9. axb5 {[%clk 0:02:50.7]} 9...
axb5 {[%clk 0:02:55.5]} 10. Rxa8 {[%clk 0:02:51.1]} 10... Qxa8 {[%clk
0:02:48.7]} 11. Nc3 {[%clk 0:02:42.4]} 11... b4 {[%clk 0:02:18.7]} 12. Nb5
{[%clk 0:02:40.4]} 12... Qb8 {[%clk 0:02:13.3]} 13. d4 {[%clk 0:02:39.2]} 13...
Bc6 {[%clk 0:02:04.6]} 14. c4 {[%clk 0:02:32.7]} 14... bxc3 {[%clk 0:01:37.1]}
15. Nxc3 {[%clk 0:02:30.1]} 15... cxd4 {[%clk 0:01:35.6]} 16. Nxd4 {[%clk
0:02:31]} 16... Bb7 {[%clk 0:01:27.4]} 17. Bb5 {[%clk 0:02:29.6]} 17... Be7
{[%clk 0:01:25.7]} 18. Bg5 {[%clk 0:02:28.6]} 18... h6 {[%clk 0:01:14.2]} 19.
Bh4 {[%clk 0:02:26.9]} 19... g5 {[%clk 0:01:08.8]} 20. Bg3 {[%clk 0:02:26.9]}
20... O-O {[%clk 0:01:09]} 21. h4 {[%clk 0:02:18.1]} 21... Ne5 {[%clk
0:01:06.1]} 22. hxg5 {[%clk 0:02:17.7]} 22... hxg5 {[%clk 0:01:05.6]} 23. Nf3
{[%clk 0:02:04.5]} 23... Nfg4 {[%clk 0:00:58.9]} 24. Bf1 {[%clk 0:01:08]} 24...
Kg7 {[%clk 0:00:52.4]} 25. Nb5 {[%clk 0:01:02.7]} 25... Bc6 {[%clk 0:00:39.6]}
26. Nbd4 {[%clk 0:01:00.3]} 26... Ba8 {[%clk 0:00:37.8]} 27. b3 {[%clk
0:00:37.1]} 27... Qb4 {[%clk 0:00:32.6]} 28. Nxe5 {[%clk 0:00:33.9]} 28... Nxe5
{[%clk 0:00:32.3]} 29. Re3 {[%clk 0:00:33.8]} 29... Rc8 {[%clk 0:00:25.2]} 30.
Nf3 {[%clk 0:00:30.2]} 30... Ng4 {[%clk 0:00:18.7]} 31. Re1 {[%clk 0:00:30.1]}
31... Bxe4 {[%clk 0:00:13.9]} 32. Nd4 {[%clk 0:00:23.2]} 32... Nf6 {[%clk
0:00:13.9]} 33. Re3 {[%clk 0:00:14.9]} 33... Bg6 {[%clk 0:00:12.6]} 34. Qa1
{[%clk 0:00:12.5]} 34... e5 {[%clk 0:00:12]} 35. Nf3 {[%clk 0:00:12.7]} 35...
Ng4 {[%clk 0:00:11.5]} 36. Re1 {[%clk 0:00:12.2]} 36... Qxb3 {[%clk 0:00:11.2]}
37. Nd4 {[%clk 0:00:10.3]} 37... exd4 {[%clk 0:00:09.5]} 38. Rxe7 {[%clk
0:00:09.4]} 38... Qc3 {[%clk 0:00:08.6]} 39. Qd1 {[%clk 0:00:09.1]} 39... Nf6
{[%clk 0:00:06.7]} 40. Bxd6 {[%clk 0:00:08.6]} 40... Re8 {[%clk 0:00:02.9]} 41.
Rxe8 {[%clk 0:00:07.7]} 41... Nxe8 {[%clk 0:00:03.8]} 42. Be5+ {[%clk
0:00:08.3]} 42... f6 {[%clk 0:00:04.5]} 43. Bxd4 {[%clk 0:00:09.2]} 43... Qc7
{[%clk 0:00:04.9]} 44. Qe1 {[%clk 0:00:08.3]} 44... Qd7 {[%clk 0:00:05]} 45. Qe3
{[%clk 0:00:08.4]} 45... Nd6 {[%clk 0:00:05.4]} 46. Qxg5 {[%clk 0:00:08.6]}
46... Ne4 {[%clk 0:00:05.3]} 47. Qe3 {[%clk 0:00:08.9]} 47... Nd6 {[%clk
0:00:05.8]} 48. Qf4 {[%clk 0:00:08.9]} 48... Nf5 {[%clk 0:00:05.9]} 49. Bc3
{[%clk 0:00:09]} 49... Qe7 {[%clk 0:00:06.4]} 50. Qc4 {[%clk 0:00:05.2]} 50...
Nd6 {[%clk 0:00:06.5]} 51. Qc5 {[%clk 0:00:05.1]} 51... Qe6 {[%clk 0:00:05.7]}
52. Qc7+ {[%clk 0:00:04.5]} 52... Bf7 {[%clk 0:00:05.2]} 53. Qc6 {[%clk
0:00:04.2]} 53... Ne4 {[%clk 0:00:04.8]} 54. Qxe6 {[%clk 0:00:04]} 54... Bxe6
{[%clk 0:00:05.7]} 55. Bd4 {[%clk 0:00:04.7]} 55... Kg6 {[%clk 0:00:05.4]} 56.
Bd3 {[%clk 0:00:04.6]} 56... f5 {[%clk 0:00:06]} 57. f3 {[%clk 0:00:04.4]} 57...
Nd6 {[%clk 0:00:06]} 58. Kf2 {[%clk 0:00:04.5]} 58... Bc4 {[%clk 0:00:06.6]} 59.
Bc2 {[%clk 0:00:04.5]} 59... Nb5 {[%clk 0:00:05.1]} 60. Bb2 {[%clk 0:00:05.1]}
60... Nc7 {[%clk 0:00:05]} 61. g4 {[%clk 0:00:03]} 61... Be6 {[%clk 0:00:05.5]}
62. Kg3 {[%clk 0:00:03.1]} 62... Nd5 {[%clk 0:00:05.5]} 63. Bd4 {[%clk
0:00:03.7]} 63... Nb4 {[%clk 0:00:05.3]} 64. Bb1 {[%clk 0:00:03.9]} 64... Nc6
{[%clk 0:00:04.7]} 65. Bc3 {[%clk 0:00:03.9]} 65... Kf7 {[%clk 0:00:03.3]} 66.
gxf5 {[%clk 0:00:02.9]} 66... Bd5 {[%clk 0:00:03.1]} 67. Be4 {[%clk 0:00:02.8]}
67... Ne7 {[%clk 0:00:03.1]} 68. Kf4 {[%clk 0:00:03.2]} 68... Bc6 {[%clk
0:00:03.6]} 69. Ke5 {[%clk 0:00:02.8]} 69... Bd7 {[%clk 0:00:03.7]} 70. Bd2
{[%clk 0:00:02.3]} 70... Be8 {[%clk 0:00:02.9]} 71. Kf4 {[%clk 0:00:02.2]} 71...
Bc6 {[%clk 0:00:03.2]} 72. Kg5 {[%clk 0:00:01]} 72... Nd5 {[%clk 0:00:02]} 73.
Be1 {[%clk 0:00:01.2]} 73... Ne7 {[%clk 0:00:02.5]} 74. Bg3 {[%clk 0:00:01.8]}
74... Nd5 {[%clk 0:00:02.6]} 75. Kg4 {[%clk 0:00:01.9]} 75... Nb4 {[%clk
0:00:03.1]} 76. Kf4 {[%clk 0:00:02.8]} 76... Nd5+ {[%clk 0:00:03.7]} 77. Ke5
{[%clk 0:00:02.9]} 77... Ne7 {[%clk 0:00:04.5]} 78. Kd6 {[%clk 0:00:03.2]} 78...
Nxf5+ {[%clk 0:00:03.9]} 79. Bxf5 {[%clk 0:00:03.3]} 79... Bxf3 {[%clk
0:00:04.8]} 80. Ke5 {[%clk 0:00:04.1]} 80... Bc6 {[%clk 0:00:04.7]} 81. Kf4
{[%clk 0:00:05]} 81... Bd5 {[%clk 0:00:04.7]} 82. Kg5 {[%clk 0:00:05.4]} 82...
Kg8 {[%clk 0:00:04.9]} 83. Be5 {[%clk 0:00:05.8]} 83... Bf7 {[%clk 0:00:05.1]}
84. Kf6 {[%clk 0:00:06.3]} 84... Ba2 {[%clk 0:00:05.8]} 85. Ke7 {[%clk
0:00:06.5]} 85... Bb3 {[%clk 0:00:05.7]} 86. Kf6 {[%clk 0:00:07.1]} 86... Ba2
{[%clk 0:00:06]} 87. Kg5 {[%clk 0:00:07.7]} 87... Kf7 {[%clk 0:00:06.4]} 88. Kh6
{[%clk 0:00:07.9]} 88... Ke7 {[%clk 0:00:06.8]} 89. Kg7 {[%clk 0:00:07.8]} 89...
Be6 {[%clk 0:00:07.2]} 90. Bf6+ {[%clk 0:00:08]} 90... Kd7 {[%clk 0:00:07.7]}
91. Bh7 {[%clk 0:00:08.9]} 91... Kd6 {[%clk 0:00:08.2]} 92. Kf8 {[%clk
0:00:09.4]} 92... Bc4 {[%clk 0:00:07.9]} 93. Be7+ {[%clk 0:00:10.3]} 93... Ke5
{[%clk 0:00:08.1]} 94. Kg7 {[%clk 0:00:10]} 94... Bd5 {[%clk 0:00:08.6]} 95.
Bf6+ {[%clk 0:00:10.9]} 95... Ke6 {[%clk 0:00:08.5]} 96. Bg8+ {[%clk 0:00:10.9]}
96... Kd6 {[%clk 0:00:09.1]} 97. Bh7 {[%clk 0:00:11.8]} 97... Be6 {[%clk
0:00:09.3]} 98. Be4 {[%clk 0:00:11.8]} 98... Bd5 {[%clk 0:00:09.5]} 99. Bd3
{[%clk 0:00:12.3]} 99... Be6 {[%clk 0:00:09.7]} 100. Bd4 {[%clk 0:00:12.6]}
100... Kd5 {[%clk 0:00:10.1]} 101. Bc3 {[%clk 0:00:13]} 101... Kd6 {[%clk
0:00:10.6]} 102. Kf6 {[%clk 0:00:13.6]} 102... Bd5 {[%clk 0:00:11]} 103. Bb4+
{[%clk 0:00:13.9]} 103... Kd7 {[%clk 0:00:10.2]} 104. Ke5 {[%clk 0:00:14.8]}
104... Bb3 {[%clk 0:00:09.4]} 105. Bb5+ {[%clk 0:00:14.8]} 105... Kc7 {[%clk
0:00:09.8]} 106. Ba5+ {[%clk 0:00:15.3]} 106... Kb7 {[%clk 0:00:08.7]} 107. Kd6
{[%clk 0:00:15.8]} 107... Bc2 {[%clk 0:00:08.1]} 108. Bc6+ {[%clk 0:00:16.1]}
108... Ka6 {[%clk 0:00:07]} 109. Bc3 {[%clk 0:00:16.7]} 109... Bd3 {[%clk
0:00:07.1]} 110. Kc7 {[%clk 0:00:16.4]} 110... Bf1 {[%clk 0:00:06.6]} 111. Kd6
{[%clk 0:00:15]} 111... Bb5 {[%clk 0:00:05.8]} 112. Ba8 {[%clk 0:00:14.9]}
112... Bf1 {[%clk 0:00:06]} 113. Kc5 {[%clk 0:00:15.3]} 113... Be2 {[%clk
0:00:06.2]} 114. Bc6 {[%clk 0:00:15.5]} 114... Bf1 {[%clk 0:00:06.2]} 115. Bd5
{[%clk 0:00:15.9]} 115... Be2 {[%clk 0:00:06.6]} 116. Be6 {[%clk 0:00:16.4]}
116... Kb7 {[%clk 0:00:04.4]} 117. Ba5 {[%clk 0:00:14.8]} 117... Ka6 {[%clk
0:00:04]} 118. Bb6 {[%clk 0:00:13.9]} 118... Kb7 {[%clk 0:00:04.2]} 119. Bd5+
{[%clk 0:00:14.4]} 119... Ka6 {[%clk 0:00:04.7]} 120. Bc6 {[%clk 0:00:14.5]}
120... Bf1 {[%clk 0:00:04]} 121. Bd7 {[%clk 0:00:14.7]} 121... Kb7 {[%clk
0:00:03.6]} 122. Bc6+ {[%clk 0:00:15.3]} 122... Ka6 {[%clk 0:00:04]} 123. Bf3
{[%clk 0:00:16.2]} 123... Bd3 {[%clk 0:00:03.8]} 124. Bg2 {[%clk 0:00:14.3]}
124... Be2 {[%clk 0:00:04]} 125. Bh3 {[%clk 0:00:13.8]} 125... Kb7 {[%clk
0:00:04.3]} 126. Be6 {[%clk 0:00:13.9]} 126... Bf1 {[%clk 0:00:03.6]} 127. Bd8
{[%clk 0:00:14.2]} 127... Be2 {[%clk 0:00:03]} 128. Bd5+ {[%clk 0:00:14.6]}
128... Kc8 {[%clk 0:00:02.7]} 129. Ba5 {[%clk 0:00:14.2]} 129... Kd7 {[%clk
0:00:03.4]} 1/2-1/2

[Event "Late-Titled-Tuesday-Blitz-July-09-2024"]
[Site "Chess.com"]
[Date "2024.07.09"]
[Round "8"]
[White "protectiago"]
[Black "Roedor"]
[Result "1-0"]
[WhiteElo "2177"]
[BlackElo "2375"]
[TimeControl "180+1"]
[EndTime "15:23:47 PDT"]
[Termination "protectiago won by resignation"]

1. d4 {[%clk 0:02:59.8]} 1... Nf6 {[%clk 0:02:59.4]} 2. c4 {[%clk 0:02:59.8]}
2... g6 {[%clk 0:02:59.5]} 3. Nc3 {[%clk 0:02:59.3]} 3... Bg7 {[%clk 0:02:59.5]}
4. e4 {[%clk 0:02:59.6]} 4... d6 {[%clk 0:02:59.8]} 5. Nf3 {[%clk 0:02:59.7]}
5... O-O {[%clk 0:03:00.4]} 6. Be2 {[%clk 0:03:00]} 6... e5 {[%clk 0:03:00.9]}
7. Be3 {[%clk 0:02:59.8]} 7... exd4 {[%clk 0:02:59.7]} 8. Nxd4 {[%clk
0:02:59.5]} 8... Re8 {[%clk 0:03:00.1]} 9. f3 {[%clk 0:02:55.1]} 9... c6 {[%clk
0:03:00.5]} 10. Bf2 {[%clk 0:02:37.5]} 10... d5 {[%clk 0:02:57.4]} 11. cxd5
{[%clk 0:02:36.7]} 11... cxd5 {[%clk 0:02:58.3]} 12. exd5 {[%clk 0:01:58.4]}
12... Nxd5 {[%clk 0:02:55]} 13. O-O {[%clk 0:01:55]} 13... Ne3 {[%clk
0:02:53.4]} 14. Bxe3 {[%clk 0:01:49.1]} 14... Rxe3 {[%clk 0:02:54.3]} 15. Nc2
{[%clk 0:01:44.6]} 15... Re8 {[%clk 0:02:53.8]} 16. Qxd8 {[%clk 0:01:41.4]}
16... Rxd8 {[%clk 0:02:54.7]} 17. Rad1 {[%clk 0:01:40.6]} 17... Re8 {[%clk
0:02:55]} 18. Bb5 {[%clk 0:01:36.6]} 18... Nc6 {[%clk 0:02:50.6]} 19. Nd5 {[%clk
0:01:36.3]} 19... Re2 {[%clk 0:02:34.8]} 20. Bxe2 {[%clk 0:00:59.7]} 1-0

[Event "Late-Titled-Tuesday-Blitz-July-09-2024"]
[Site "Chess.com"]
[Date "2024.07.09"]
[Round "8"]
[White "ImportedItalianMaple"]
[Black "Martins-BR"]
[Result "0-1"]
[WhiteElo "2471"]
[BlackElo "2404"]
[TimeControl "180+1"]
[EndTime "15:24:05 PDT"]
[Termination "Martins-BR won by resignation"]

1. d4 {[%clk 0:02:56.7]} 1... f5 {[%clk 0:02:57.1]} 2. Nc3 {[%clk 0:02:52.7]}
2... d5 {[%clk 0:02:55.9]} 3. Bf4 {[%clk 0:02:50.4]} 3... a6 {[%clk 0:02:54]} 4.
Nf3 {[%clk 0:02:40.2]} 4... Nf6 {[%clk 0:02:53.7]} 5. e3 {[%clk 0:02:38.8]} 5...
e6 {[%clk 0:02:53.6]} 6. Bd3 {[%clk 0:02:35.3]} 6... Bd6 {[%clk 0:02:53.2]} 7.
Ne5 {[%clk 0:02:34.9]} 7... O-O {[%clk 0:02:52.2]} 8. Bg3 {[%clk 0:02:26.7]}
8... Nbd7 {[%clk 0:02:47.3]} 9. f4 {[%clk 0:02:26]} 9... Qe7 {[%clk 0:02:44.6]}
10. Bh4 {[%clk 0:02:23.2]} 10... c5 {[%clk 0:02:39.2]} 11. O-O {[%clk 0:02:16]}
11... c4 {[%clk 0:02:37.8]} 12. Be2 {[%clk 0:02:16.1]} 12... Qe8 {[%clk
0:02:25]} 13. Bf3 {[%clk 0:01:59.5]} 13... b5 {[%clk 0:02:19.8]} 14. a4 {[%clk
0:01:50.4]} 14... b4 {[%clk 0:02:17.8]} 15. Nxc4 {[%clk 0:01:43.9]} 15... dxc4
{[%clk 0:02:13.7]} 16. Bxa8 {[%clk 0:01:43.6]} 16... bxc3 {[%clk 0:02:13.3]} 17.
bxc3 {[%clk 0:01:44.5]} 17... Nd5 {[%clk 0:02:07]} 18. Qe2 {[%clk 0:01:26.1]}
18... N7b6 {[%clk 0:02:01.6]} 19. a5 {[%clk 0:01:26.2]} 19... Nxa8 {[%clk
0:02:00.3]} 20. Qxc4 {[%clk 0:01:23.1]} 20... Nxe3 {[%clk 0:01:57.5]} 0-1

[Event "Late-Titled-Tuesday-Blitz-July-09-2024"]
[Site "Chess.com"]
[Date "2024.07.09"]
[Round "8"]
[White "Vladimir_Zakhartsov"]
[Black "Vladimir_2020"]
[Result "1-0"]
[WhiteElo "2905"]
[BlackElo "2775"]
[TimeControl "180+1"]
[EndTime "15:24:21 PDT"]
[Termination "Vladimir_Zakhartsov won by resignation"]

1. d4 {[%clk 0:03:00.9]} 1... d5 {[%clk 0:02:59.3]} 2. c4 {[%clk 0:03:01.2]}
2... c6 {[%clk 0:02:59.3]} 3. cxd5 {[%clk 0:03:01.3]} 3... cxd5 {[%clk
0:02:58.8]} 4. Bf4 {[%clk 0:03:01.9]} 4... Nc6 {[%clk 0:02:58.1]} 5. e3 {[%clk
0:03:01.9]} 5... Nf6 {[%clk 0:02:58.3]} 6. Bb5 {[%clk 0:03:00.3]} 6... Bd7
{[%clk 0:02:53.4]} 7. Nc3 {[%clk 0:02:55.5]} 7... e6 {[%clk 0:02:52.6]} 8. Nf3
{[%clk 0:02:54.8]} 8... Be7 {[%clk 0:02:46.3]} 9. h3 {[%clk 0:02:53.7]} 9... O-O
{[%clk 0:02:45.8]} 10. O-O {[%clk 0:02:54]} 10... Qb6 {[%clk 0:02:41.5]} 11. a3
{[%clk 0:02:51.8]} 11... Rfc8 {[%clk 0:02:41]} 12. Bd3 {[%clk 0:02:50.6]} 12...
Na5 {[%clk 0:02:37]} 13. Rb1 {[%clk 0:02:44.6]} 13... Nc4 {[%clk 0:02:29.9]} 14.
Ne5 {[%clk 0:02:42.7]} 14... Be8 {[%clk 0:02:20.1]} 15. Nxc4 {[%clk 0:02:38.2]}
15... dxc4 {[%clk 0:02:19.6]} 16. Bc2 {[%clk 0:02:38.9]} 16... Nd5 {[%clk
0:02:07.4]} 17. Nxd5 {[%clk 0:02:32.1]} 17... exd5 {[%clk 0:02:07]} 18. Qh5
{[%clk 0:02:32.7]} 18... g6 {[%clk 0:01:48.1]} 19. Qxd5 {[%clk 0:02:25.9]} 19...
Bc6 {[%clk 0:01:48]} 20. Qe5 {[%clk 0:02:25.6]} 20... Bf8 {[%clk 0:01:48]} 21.
Bg5 {[%clk 0:02:18.8]} 21... Re8 {[%clk 0:01:44.8]} 22. Qf4 {[%clk 0:02:16.5]}
22... Qa5 {[%clk 0:01:38.1]} 23. Rfd1 {[%clk 0:02:06.1]} 23... c3 {[%clk
0:01:26.1]} 24. bxc3 {[%clk 0:01:56.7]} 24... Qxc3 {[%clk 0:01:25.9]} 25. Bb3
{[%clk 0:01:56.4]} 1-0

[Event "Late-Titled-Tuesday-Blitz-July-09-2024"]
[Site "Chess.com"]
[Date "2024.07.09"]
[Round "8"]
[White "Horokoskii"]
[Black "rionelG"]
[Result "0-1"]
[WhiteElo "2136"]
[BlackElo "2416"]
[TimeControl "180+1"]
[EndTime "15:25:25 PDT"]
[Termination "rionelG won by resignation"]

1. c4 {[%clk 0:03:00.9]} 1... c5 {[%clk 0:02:57.9]} 2. Nc3 {[%clk 0:03:01.1]}
2... g6 {[%clk 0:02:54.6]} 3. g3 {[%clk 0:03:00.9]} 3... Bg7 {[%clk 0:02:54.4]}
4. Bg2 {[%clk 0:03:01.5]} 4... Nc6 {[%clk 0:02:53.5]} 5. e3 {[%clk 0:03:01.7]}
5... e6 {[%clk 0:02:51.4]} 6. Nge2 {[%clk 0:03:02.2]} 6... Nge7 {[%clk
0:02:50.5]} 7. O-O {[%clk 0:03:02.7]} 7... O-O {[%clk 0:02:45.8]} 8. b3 {[%clk
0:03:03]} 8... d5 {[%clk 0:02:42.4]} 9. cxd5 {[%clk 0:03:01.7]} 9... exd5 {[%clk
0:02:43.3]} 10. Bb2 {[%clk 0:03:01.6]} 10... Bf5 {[%clk 0:02:31.3]} 11. d4
{[%clk 0:02:59.2]} 11... cxd4 {[%clk 0:02:29.1]} 12. Nxd4 {[%clk 0:02:59.4]}
12... Nxd4 {[%clk 0:02:25.7]} 13. exd4 {[%clk 0:03:00.3]} 13... Rc8 {[%clk
0:02:16]} 14. Re1 {[%clk 0:02:59.6]} 14... Re8 {[%clk 0:02:14.7]} 15. Rc1 {[%clk
0:02:57.5]} 15... Qd7 {[%clk 0:01:43.6]} 16. Qd2 {[%clk 0:02:55.9]} 16... Be6
{[%clk 0:01:35.1]} 17. Na4 {[%clk 0:02:49.2]} 17... b6 {[%clk 0:01:33.4]} 18.
Ba3 {[%clk 0:02:49.4]} 18... Nf5 {[%clk 0:01:32.1]} 19. Bb2 {[%clk 0:02:46.9]}
19... Bh6 {[%clk 0:01:31.6]} 20. f4 {[%clk 0:02:45.1]} 20... Bf8 {[%clk
0:01:19.3]} 21. Ba1 {[%clk 0:02:42.6]} 21... Ba3 {[%clk 0:01:13.5]} 22. Rxc8
{[%clk 0:02:42.4]} 22... Rxc8 {[%clk 0:01:13.4]} 23. Nb2 {[%clk 0:02:43]} 23...
Nxd4 {[%clk 0:01:02.3]} 24. Na4 {[%clk 0:02:11.5]} 24... Nc2 {[%clk 0:00:58.5]}
25. Rf1 {[%clk 0:01:58.4]} 25... Nxa1 {[%clk 0:00:57.4]} 26. Rxa1 {[%clk
0:01:59.3]} 26... d4 {[%clk 0:00:47.9]} 27. Nb2 {[%clk 0:01:55]} 27... d3 {[%clk
0:00:40.6]} 28. Nxd3 {[%clk 0:01:40.1]} 28... Qd4+ {[%clk 0:00:39]} 0-1